Workbook

Sheet Sheet1
F1: Monthly | G1: Monthly
F2: 2026 | G2: 2026 | H2: 2026 | I2: 2026
B3: Unit | E3: 2026 | F3: Condo | G3: RE | H3: Monthly | I3: Monthly | J3: Annual | K3: Annual | L3: Net Operating | M3: Cap | N3: NY or NJ | P3: Asking Price
B4: # | C4: Type | D4: Sq Ft | E4: Rent | F4: Fees | G4: Taxes | H4: Expenses | I4: Cash Flow | J4: Expenses | K4: Revenues | L4: Income | M4: Rate | N4: View | O4: Balcony
A5: 1 | B5: 1516 | C5: STUDIO | D5: 561 | E5: 945.6 | F5: 439.64 | G5: 130.44 | H5: =F5+G5 -> 570.08 | I5: =E5-H5 -> 375.52 | J5: =H5*12 -> 6840.96 | K5: =E5*12 -> 11347.2 | L5: =K5-J5 -> 4506.24 | M5: =L5/P5 -> 0.03466338462 | N5: NJ | P5: 130000
A6: 2 | B6: 1116 | C6: STUDIO | D6: 561 | E6: 1056.51 | F6: 439.64 | G6: 137.52 | H6: 577.16 | I6: =F6+G6 -> 577.16 | J6: =H6*12 -> 6925.92 | K6: =E6*12 -> 12678.12 | L6: =K6-J6 -> 5752.2 | M6: 0.04424769231 | N6: NJ | P6: 130000
A7: 3 | B7: 606 | C7: STUDIO | D7: 542 | E7: 1131.68 | F7: 425.31 | G7: 139.52 | H7: 564.83 | I7: 564.83 | J7: 6777.96 | K7: =E7*12 -> 13580.16 | L7: 6802.2 | M7: 0.05232461538 | N7: NY | P7: 130000
A8: 4 | B8: 716 | C8: STUDIO | D8: 561 | E8: 1155.19 | F8: 439.64 | G8: 124.12 | H8: 563.76 | I8: 563.76 | J8: 6765.12 | K8: =E8*12 -> 13862.28 | L8: 7097.16 | M8: 0.05459353846 | N8: NJ | P8: 130000
H9: 0 | I9: 0 | J9: 0
A10: 5 | B10: 1414 | C10: 1-1 BR | D10: 821 | E10: 1140.76 | F10: 643.8 | G10: 180.03 | H10: 823.83 | I10: 823.83 | J10: 9885.96 | K10: =E10*12 -> 13689.12 | L10: 3803.16 | M10: =L10/P10 -> 0.01690293333 | N10: NJ | P10: 225000
A11: 6 | B11: 809 | C11: 1-1 BR | D11: 885 | E11: 1266.29 | F11: 693.96 | G11: 212.67 | H11: 906.63 | I11: 906.63 | J11: 10879.56 | K11: 15195.48 | L11: 4315.92 | M11: 0.01918186667 | N11: NY | O11: Y | P11: 225000
A12: 7 | B12: 807 | C12: 1-1 BR | D12: 769 | E12: 1290.43 | F12: 602.84 | G12: 186.34 | H12: 789.18 | I12: 789.18 | J12: 9470.16 | K12: 15485.16 | L12: 6015 | M12: 0.02673333333 | N12: NY | P12: 225000
A13: 8 | B13: 1714 | C13: 1-1 BR | D13: 821 | E13: 1465.22 | F13: 643.8 | G13: 183.72 | H13: 827.52 | I13: 827.52 | J13: 9930.24 | K13: 17582.64 | L13: 7652.4 | M13: 0.03401066667 | N13: NJ | P13: 225000
A14: 9 | B14: 1611 | C14: 1-1 BR | D14: 877 | E14: 1551.35 | F14: 687.82 | G14: 210.21 | H14: 898.03 | I14: 898.03 | J14: 10776.36 | K14: 18616.2 | L14: 7839.84 | M14: 0.03484373333 | N14: NJ | O14: Y | P14: 225000
A15: 10 | B15: 602 | C15: 1-1 BR | D15: 866 | E15: 1762.51 | F15: 679.43 | G15: 208.67 | H15: 888.1 | I15: 888.1 | J15: 10657.2 | K15: 21150.12 | L15: 10492.92 | M15: 0.0466352 | N15: NY | O15: Y | P15: 225000
A16: 11 | B16: 1614 | C16: 1-1 BR | D16: 821 | E16: 2045.87 | F16: 643.59 | G16: 182.34 | H16: 825.93 | I16: 825.93 | J16: 9911.16 | K16: 24550.44 | L16: 14639.28 | M16: 0.06506346667 | N16: NJ | P16: 225000
H17: 0 | I17: 0 | J17: 0
A18: 12 | B18: 310 | C18: 2-1 BR | D18: 1088 | E18: 2416.62 | F18: 853.68 | G18: 219.14 | H18: 1072.82 | I18: 1072.82 | J18: 12873.84 | K18: =E18*12 -> 28999.44 | L18: 16125.6 | M18: =L18/P18 -> 0.05759142857 | N18: NY | O18: Y | P18: 280000
H19: 0
F20: ( | I20: Total | L20: =SUM(L5:L19) -> 95041.92 | M20: =L20/P20 -> 0.04001765053 | P20: =SUM(P5:P19) -> 2375000
